fUSD/lending_fUSD_20240916
["ID","MTS","AMOUNT","RATE_DAILY","PERIOD"]
[338259549,1726451444127,-377.91696717,0.00014694,2]
[338259551,1726451444136,-557.4023865,0.00014694,2]
[338259553,1726451444146,-190.69068202,0.00014694,2]
[338259555,1726451444155,-796.0,0.00014703,2]
[338259557,1726451444164,-150.0,0.00014712,2]
[338259559,1726451444173,-150.0,0.0001472,2]
[338259561,1726451444183,-181.81684371,0.00014721,3]
[338259563,1726451444192,-150.0,0.00014722,2]
[338259565,1726451444201,-150.0,0.00014726,2]
[338259567,1726451444211,-291.85901461,0.0001473,2]
[338259569,1726451444220,-150.0,0.00014736,2]
[338259571,1726451444229,-150.0,0.00014742,2]
[338259573,1726451444239,-150.0,0.00014743,2]
[338259575,1726451444248,-224.05,0.00014758,2]
[338259576,1726451444257,-150.0,0.00014759,2]
[338259577,1726451444266,-534.04640001,0.00014767,2]
[338259578,1726451444275,-202.76191978,0.00014767,2]
[338259579,1726451444285,-250.52810393,0.00014767,2]
[338259580,1726451444294,-150.0,0.00014767,2]
[338259581,1726451444303,-150.0,0.00014767,2]
[338259582,1726451444312,-150.0,0.00014767,2]
[338259583,1726451444322,-150.0,0.00014772,2]
[338259584,1726451444331,-500.48735273,0.00014773,2]
[338259585,1726451444340,-500.58182159,0.00014773,2]
[338259586,1726451444354,-503.54672167,0.00014773,2]
[338259587,1726451444363,-534.04640001,0.00014775,2]
[338259588,1726451444372,-202.76191978,0.00014775,2]
[338259589,1726451444381,-250.52810393,0.00014775,2]
[338259590,1726451444390,-150.0,0.00014775,2]
[338259591,1726451444399,-150.0,0.00014777,2]
[338259592,1726451444408,-150.0,0.00014779,2]
[338259593,1726451444417,-150.0,0.0001478,2]
[338259594,1726451444427,-181.81684371,0.0001478,3]
[338259595,1726451444436,-534.04640001,0.00014782,2]
[338259596,1726451444446,-202.76191978,0.00014782,2]
[338259597,1726451444455,-250.52810393,0.00014782,2]
[338259598,1726451444464,-363.63368742,0.00014784,3]
[338259599,1726451444474,-161.56,0.00014784,2]
[338259600,1726451444483,-150.0,0.00014785,2]
[338259601,1726451444493,-534.04640001,0.00014789,2]
[338259602,1726451444502,-202.76191978,0.00014789,2]
[338259603,1726451444511,-250.52810393,0.00014789,2]
[338259604,1726451444520,-1298.32458411,0.0001479,2]
[338259605,1726451444533,-7820.02662711,0.0001479,2]
[338259606,1726451444543,-178.0089744,0.00014793,2]
[338259607,1726451444552,-500.0,0.00014793,2]
[338259608,1726451444562,-184.30389828,0.00014793,2]
[338259609,1726451444571,-175.33386251,0.00014793,2]
[338259610,1726451444580,-416.78573871,0.00014793,2]
[338259611,1726451444589,-172.41002211,0.00014793,2]
[338259612,1726451444598,-191.91706585,0.00014793,2]
[338259613,1726451444609,-163.26001933,0.00014793,2]
[338259614,1726451444618,-500.0,0.00014793,2]
[338259615,1726451444628,-245.99367057,0.00014793,2]
[338259616,1726451444636,-500.0,0.00014793,2]
[338259617,1726451444645,-225.03099084,0.00014793,2]
[338259618,1726451444655,-595.92708761,0.00014793,2]
[338259619,1726451444664,-179.13537456,0.00014793,2]
[338259620,1726451444673,-1000.0,0.00014793,2]
[338259621,1726451444683,-500.0,0.00014793,2]
[338259622,1726451444693,-2931.79245562,0.00014794,2]
[338259623,1726451444704,-352.46079364,0.00014794,2]
[338259624,1726451444719,-17868.61591831,0.00014794,2]
[338259625,1726451444729,-210.74563305,0.00014794,2]
[338259626,1726451444738,-159.2560194,0.00014794,2]
[338259627,1726451444748,-61168.98363987,0.00014794,2]
[338259628,1726451446544,-569.475,0.00014794,2]
[338259630,1726451446556,-1462.62,0.00014794,2]
[338259631,1726451446730,-435.93874686,0.00014794,2]
[338259632,1726451446742,-1908.33490163,0.00014794,2]
[338259633,1726451446753,-58840.7707272,0.00014794,2]
[338259634,1726451446765,-1203.491268,0.00014794,2]
[338259635,1726451458008,242.92,0.00011966,2]
[338259636,1726451624334,641.56498558,0.00011664,2]
[338259637,1726451896605,161.51,0.00010959,2]
[338259638,1726452009088,253.18,0.00011785,2]
[338259643,1726452383835,156.3,0.00010959,2]
[338259651,1726452559081,-3306.2105345,0.00012773,2]
[338259652,1726452559140,-3306.2105345,0.00012773,2]
[338259653,1726452559196,-3306.2105345,0.00012773,2]
[338259654,1726452559256,-3306.2105345,0.00012773,2]
[338259655,1726452559304,-3306.2105345,0.00012773,2]
[338259656,1726452559365,-3306.2105345,0.00012773,2]
[338259657,1726452559420,-1318.83359246,0.00012773,2]
[338259658,1726452559474,-2743.90320054,0.00012773,2]
[338259659,1726452559505,-250.0,0.00012951,2]
[338259660,1726452559533,-299.04,0.00013,2]
[338259661,1726452559559,-13.26733396,0.00013,2]
[338259662,1726452616384,284.6,0.0001086,2]
[338259676,1726452631687,-197.63,0.00012787,2]
[338259677,1726452631696,-114.39099594,0.00013,2]
[338259678,1726452631869,-32.7098241,0.00013,2]
[338259679,1726452631878,-284.6,0.00013124,2]
[338259680,1726452631888,-498.74596311,0.0001329,2]
[338259681,1726452632048,-13.93858089,0.0001329,2]
[338259683,1726452632057,-196.22912519,0.0001329,2]
[338259685,1726452632066,-62.01698112,0.0001329,2]
[338259688,1726452637893,-180.08755529,0.0001329,2]
[338259689,1726452637903,-150.0,0.0001329,2]
[338259690,1726452637913,-150.0,0.0001329,2]
[338259691,1726452637922,-150.0,0.0001329,2]
[338259692,1726452637931,-269.15894861,0.00013305,2]
[338259693,1726452637943,-243.52559539,0.00013305,2]
[338259694,1726452637952,-196.22912519,0.00013305,2]
[338259695,1726452637961,-242.10453641,0.00013305,2]
[338259696,1726452637971,-381.45643995,0.0001332,2]
[338259697,1726452637982,-131.22810405,0.0001332,2]
[338259698,1726452637991,-196.22912519,0.0001332,2]
[338259699,1726452638000,-242.10453641,0.0001332,2]
[338259700,1726452638009,-150.0,0.00013326,2]
[338259701,1726452638018,-512.684544,0.00013335,2]
[338259702,1726452638027,-196.22912519,0.00013335,2]
[338259703,1726452638037,-242.10453641,0.00013335,2]
[338259704,1726452638051,-512.684544,0.0001335,2]
[338259705,1726452638060,-196.22912519,0.0001335,2]
[338259706,1726452638069,-242.10453641,0.0001335,2]
[338259707,1726452638079,-150.0,0.00013362,2]
[338259708,1726452638088,-286.7160514,0.00013365,2]
[338259709,1726452638099,-225.9684926,0.00013365,2]
[338259710,1726452638108,-196.22912519,0.00013365,2]
[338259711,1726452638118,-242.10453641,0.00013365,2]
[338259712,1726452638127,-512.684544,0.0001338,2]
[338259713,1726452638136,-196.22912519,0.0001338,2]
[338259714,1726452638146,-242.10453641,0.0001338,2]
[338259715,1726452638155,-150.0,0.00013394,2]
[338259716,1726452638164,-512.684544,0.00013395,2]
[338259717,1726452638174,-292.0,0.00013395,2]
[338259718,1726452638183,-196.22912519,0.00013395,2]
[338259719,1726452638192,-242.10453641,0.00013395,2]
[338259720,1726452638201,-150.0,0.00013398,2]
[338259721,1726452638211,-512.684544,0.0001341,2]
[338259722,1726452638220,-196.22912519,0.0001341,2]
[338259723,1726452638229,-242.10453641,0.0001341,2]
[338259724,1726452638238,-512.684544,0.00013425,2]
[338259725,1726452638250,-196.22912519,0.00013425,2]
[338259726,1726452638259,-242.10453641,0.00013425,2]
[338259727,1726452638268,-64.36744403,0.00013434,2]
[338259729,1726452638280,-85.63255597,0.00013434,2]
[338259730,1726452638291,-512.684544,0.0001344,2]
[338259731,1726452638300,-196.22912519,0.0001344,2]
[338259732,1726452638309,-120.40001484,0.0001344,2]
[338259733,1726452638320,-121.70452157,0.0001344,2]
[338259734,1726452638329,-160.368154,0.00013448,2]
[338259735,1726452638338,-512.684544,0.00013454,2]
[338259736,1726452638348,-196.22912519,0.00013454,2]
[338259737,1726452638356,-242.10453641,0.00013454,2]
[338259738,1726452638366,-512.684544,0.00013469,2]
[338259739,1726452638375,-196.22912519,0.00013469,2]
[338259740,1726452638384,-242.10453641,0.00013469,2]
[338259741,1726452638393,-150.0,0.0001347,2]
[338259742,1726452638403,-90.89091322,0.00013484,2]
[338259746,1726452639733,-421.79363078,0.00013484,2]
[338259747,1726452639743,-196.22912519,0.00013484,2]
[338259748,1726452639753,-242.10453641,0.00013484,2]
[338259749,1726452639762,-512.684544,0.00013499,2]
[338259750,1726452639771,-196.22912519,0.00013499,2]
[338259751,1726452639781,-242.10453641,0.00013499,2]
[338259752,1726452639790,-150.0,0.00013507,2]
[338259753,1726452639800,-158.127,0.00013507,2]
[338259754,1726452639809,-236.68623802,0.00013514,2]
[338259755,1726452639911,-275.99830598,0.00013514,2]
[338259756,1726452639921,-196.22912519,0.00013514,2]
[338259757,1726452639930,-109.79754921,0.00013514,2]
[338259758,1726452639941,-132.3069872,0.00013514,2]
[338259759,1726452639951,-512.684544,0.00013529,2]
[338259760,1726452639960,-196.22912519,0.00013529,2]
[338259761,1726452639969,-40.96023103,0.00013529,2]
[338259762,1726452639980,-201.14430538,0.00013529,2]
[338259763,1726452639989,-150.0,0.00013537,2]
[338259764,1726452639999,-150.0,0.00013543,2]
[338259765,1726452640008,-512.684544,0.00013544,2]
[338259766,1726452640017,-196.22912519,0.00013544,2]
[338259767,1726452640026,-242.10453641,0.00013544,2]
[338259768,1726452640035,-512.684544,0.00013559,2]
[338259769,1726452640045,-196.22912519,0.00013559,2]
[338259770,1726452640054,-242.10453641,0.00013559,2]
[338259771,1726452640064,-512.684544,0.00013574,2]
[338259772,1726452640074,-196.22912519,0.00013574,2]
[338259773,1726452640083,-242.10453641,0.00013574,2]
[338259774,1726452640093,-150.0,0.00013579,2]
[338259776,1726452640102,-512.684544,0.00013589,2]
[338259778,1726452640111,-196.22912519,0.00013589,2]
[338259780,1726452640120,-242.10453641,0.00013589,2]
[338259782,1726452640133,-600.0,0.00013593,2]
[338259785,1726452640143,-512.684544,0.00013604,2]
[338259786,1726452640153,-55.62376779,0.00013604,2]
[338259898,1726452642872,-140.6053574,0.00013604,2]
[338259899,1726452642882,-242.10453641,0.00013604,2]
[338259900,1726452642891,-150.0,0.00013615,2]
[338259901,1726452642901,-512.684544,0.00013619,2]
[338259902,1726452642910,-196.22912519,0.00013619,2]
[338259903,1726452642919,-242.10453641,0.00013619,2]
[338259907,1726452643154,-1832.68412448,0.00013619,2]
[338259910,1726452643177,-586.47,0.00013619,2]
[338259912,1726452643188,-1140.2,0.00013619,2]
[338259946,1726452645796,-5294.78756811,0.00013619,2]
[338259947,1726452645964,-980.18249376,0.00013619,2]
[338259949,1726452889690,519.32932286,0.00011664,2]
[338259950,1726452944544,161.22,0.00010959,2]
[338259951,1726453118972,150.0,0.00012544,2]
[338259952,1726453119053,150.0,0.00012545,2]
[338259953,1726453178662,150.0,0.00012495,2]
[338259954,1726453178776,150.0,0.00012604,2]
[338259955,1726453178870,150.0,0.00012574,2]
[338259956,1726453178903,150.0,0.00012328,2]
[338259957,1726453179050,150.0,0.0001248,2]
[338259958,1726453190080,275.31,0.00010946,2]
[338259959,1726453298964,150.0,0.00011906,2]
[338259960,1726453418915,150.0,0.0001241,2]
[338259961,1726453425803,156.19,0.00010959,2]
[338259962,1726453447954,1050.0,0.00011,2]
[338259964,1726453598828,150.0,0.00012282,2]
[338259965,1726453598869,150.0,0.00011822,2]
[338259966,1726453598928,150.0,0.00012169,2]
[338259970,1726453671674,151.26,0.00012247,2]
[338259976,1726453698989,-150.0,0.00012704,2]
[338259977,1726453699019,-150.0,0.00012709,2]
[338259978,1726453699255,-150.0,0.0001275,2]
[338259979,1726453699302,-250.0,0.00012801,2]
[338259980,1726453699335,-149.66750924,0.00012858,2]
[338259981,1726453739338,20000.0,0.0001264,2]
[338259983,1726453763996,12559.77,0.0001264,2]
[338259985,1726453831379,278.79,0.00010821,2]
[338260000,1726453831760,-0.33249076,0.00012858,2]
[338260002,1726453831770,-357.22477363,0.000129,2]
[338260004,1726453831779,-435.03285301,0.00012973,2]
[338260006,1726453831790,-64.96714699,0.00012973,2]
[338260008,1726453831799,-501.98062765,0.00012973,2]
[338260010,1726453831808,-150.0,0.00012974,2]
[338260012,1726453831817,-156.53,0.0001299,2]
[338260014,1726453831827,-1003.37311534,0.00012999,2]
[338260016,1726453831836,-500.0,0.00012999,2]
[338260018,1726453831845,-584.92105097,0.00012999,2]
[338260019,1726453831854,-150.0,0.00012999,2]
[338260020,1726453831863,-269.14,0.00013,2]
[338260021,1726453831872,-1664.90492344,0.00013,2]
[338260022,1726453831883,-2613.10872722,0.00013,2]
[338260023,1726453831894,-1267.72544217,0.00013,2]
[338260024,1726453831909,-2883.69817061,0.00013,2]
[338260025,1726453831920,-261.39657885,0.00013,2]
[338260026,1726453831931,-3831.16040795,0.00013,2]
[338260027,1726453831980,-598.97184433,0.00013,2]
[338260028,1726453831991,-1171.596528,0.00013,2]
[338260029,1726453832001,-542.67878054,0.00013,2]
[338260030,1726453832012,-2922.2,0.00013,2]
[338260031,1726453832024,-541.0092199,0.00013,2]
[338260032,1726453832035,-1900.0,0.00013,2]
[338260033,1726453832046,-542.63758104,0.00013,2]
[338260045,1726453837936,-3201.2899213,0.000129,2]
[338260046,1726453837948,-1550.94093231,0.000129,2]
[338260047,1726453838044,-13748.10526268,0.000129,2]
[338260048,1726453838053,-2872.40887151,0.00013,2]
[338260049,1726453838064,-5841.00021091,0.00013,2]
[338260050,1726453838075,-8161.55232809,0.00013,2]
[338260051,1726453838086,-990.63368508,0.00013,2]
[338260052,1726453838097,-58500.0,0.00013,2]
[338260053,1726453838108,-5906.63080696,0.00013,2]
[338260054,1726453838146,-1152391.99502668,0.00013,2]
[338260055,1726453838155,-210.75617034,0.00013,2]
[338260056,1726453838164,-17085.1597545,0.00013,2]
[338260057,1726453838173,-164.68,0.00013001,2]
[338260058,1726453838182,-9999.99,0.00013001,2]
[338260059,1726453838191,-1000.0,0.00013031,2]
[338260060,1726453838201,-1345.5,0.00013031,2]
[338260061,1726453838210,-499.99,0.00013031,2]
[338260062,1726453838219,-278.79,0.00013085,2]
[338260063,1726453838229,-301.78373222,0.0001318,2]
[338260064,1726453838239,-455.33991782,0.0001329,2]
[338260065,1726453838250,-159.20690319,0.0001329,2]
[338260066,1726453838260,-196.44161719,0.0001329,2]
[338260067,1726453838269,-152.06538233,0.0001329,2]
[338260068,1726453838279,-150.0,0.0001329,2]
[338260069,1726453838289,-150.0,0.0001329,2]
[338260070,1726453838299,-150.0,0.0001329,2]
[338260071,1726453838309,-455.33991782,0.00013305,2]
[338260072,1726453838318,-159.20690319,0.00013305,2]
[338260073,1726453838330,-196.44161719,0.00013305,2]
[338260074,1726453838339,-455.33991782,0.0001332,2]
[338260075,1726453838349,-159.20690319,0.0001332,2]
[338260077,1726453838359,-196.44161719,0.0001332,2]
[338260078,1726453838368,-4104.9807539,0.0001333,2]
[338260079,1726453838378,-10000.0,0.0001333,2]
[338260080,1726453838387,-455.33991782,0.00013335,2]
[338260081,1726453838396,-159.20690319,0.00013335,2]
[338260082,1726453838409,-196.44161719,0.00013335,2]
[338260083,1726453838418,-150.0,0.00013335,2]
[338260084,1726453838428,-150.0,0.0001334,2]
[338260085,1726453838438,-455.33991782,0.0001335,2]
[338260086,1726453838447,-159.20690319,0.0001335,2]
[338260087,1726453838457,-196.44161719,0.0001335,2]
[338260089,1726453838466,-455.33991782,0.00013365,2]
[338260091,1726453838475,-159.20690319,0.00013365,2]
[338260093,1726453838485,-196.44161719,0.00013365,2]
[338260095,1726453838494,-455.33991782,0.0001338,2]
[338260097,1726453838504,-159.20690319,0.0001338,2]
[338260099,1726453838513,-196.44161719,0.0001338,2]
[338260101,1726453838524,-150.0,0.0001338,2]
[338260103,1726453838533,-150.0,0.00013391,2]
[338260105,1726453838542,-455.33991782,0.00013395,2]
[338260107,1726453838551,-159.20690319,0.00013395,2]
[338260109,1726453838560,-196.44161719,0.00013395,2]
[338260111,1726453838569,-291.85901461,0.00013396,2]
[338260113,1726453838578,-455.33991782,0.0001341,2]
[338260115,1726453838588,-159.20690319,0.0001341,2]
[338260117,1726453838597,-196.44161719,0.0001341,2]
[338260119,1726453838606,-455.33991782,0.00013425,2]
[338260121,1726453838616,-159.20690319,0.00013425,2]
[338260123,1726453838625,-196.44161719,0.00013425,2]
[338260124,1726453838634,-150.0,0.00013425,2]
[338260127,1726453838647,-150.0,0.00013427,2]
[338260129,1726453838656,-158.127,0.00013434,2]
[338260131,1726453838667,-455.33991782,0.0001344,2]
[338260133,1726453838676,-159.20690319,0.0001344,2]
[338260135,1726453838686,-455.33991782,0.00013454,2]
[338260136,1726453838695,-159.20690319,0.00013454,2]
[338260138,1726453838704,-455.33991782,0.00013469,2]
[338260140,1726453838714,-159.20690319,0.00013469,2]
[338260142,1726453838724,-150.0,0.00013469,2]
[338260143,1726453838733,-150.0,0.00013476,2]
[338260144,1726453838743,-455.33991782,0.00013484,2]
[338260145,1726453838752,-159.20690319,0.00013484,2]
[338260146,1726453838761,-455.33991782,0.00013499,2]
[338260147,1726453838770,-159.20690319,0.00013499,2]
[338260148,1726453838780,-455.33991782,0.00013514,2]
[338260149,1726453838788,-159.20690319,0.00013514,2]
[338260150,1726453838799,-150.0,0.00013514,2]
[338260151,1726453838810,-150.0,0.00013521,2]
[338260152,1726453838821,-455.33991782,0.00013529,2]
[338260153,1726453838831,-159.20690319,0.00013529,2]
[338260154,1726453838843,-455.33991782,0.00013544,2]
[338260155,1726453838852,-159.20690319,0.00013544,2]
[338260156,1726453838862,-455.33991782,0.00013559,2]
[338260157,1726453838872,-159.20690319,0.00013559,2]
[338260158,1726453838881,-150.0,0.00013559,2]
[338260159,1726453838890,-455.33991782,0.00013574,2]
[338260160,1726453838900,-159.20690319,0.00013574,2]
[338260161,1726453838910,-150.0,0.00013586,2]
[338260162,1726453838919,-455.33991782,0.00013589,2]
[338260163,1726453838928,-159.20690319,0.00013589,2]
[338260164,1726453838938,-455.33991782,0.00013604,2]
[338260165,1726453838947,-159.20690319,0.00013604,2]
[338260166,1726453838959,-150.0,0.00013604,2]
[338260167,1726453838969,-150.0,0.00013605,2]
[338260168,1726453838978,-455.33991782,0.00013619,2]
[338260169,1726453838987,-159.20690319,0.00013619,2]
[338260170,1726453838997,-455.33991782,0.00013633,2]
[338260171,1726453839008,-159.20690319,0.00013633,2]
[338260172,1726453839017,-455.33991782,0.00013648,2]
[338260173,1726453839027,-159.20690319,0.00013648,2]
[338260174,1726453839036,-150.0,0.00013648,2]
[338260175,1726453839046,-455.33991782,0.00013663,2]
[338260176,1726453839055,-159.20690319,0.00013663,2]
[338260177,1726453839064,-455.33991782,0.00013678,2]
[338260178,1726453839073,-159.20690319,0.00013678,2]
[338260179,1726453839084,-455.33991782,0.00013693,2]
[338260180,1726453839093,-159.20690319,0.00013693,2]
[338260181,1726453839103,-150.0,0.00013693,2]
[338260182,1726453839112,-200.0,0.00013699,2]
[338260183,1726453839122,-150.2,0.00013699,2]
[338260184,1726453839131,-2751.0,0.00013699,2]
[338260185,1726453839140,-455.33991782,0.00013708,2]
[338260186,1726453839149,-159.20690319,0.00013708,2]
[338260187,1726453839158,-1496.63504,0.0001371,2]
[338260188,1726453839167,-455.33991782,0.00013723,2]
[338260189,1726453839176,-159.20690319,0.00013723,2]
[338260190,1726453839186,-455.33991782,0.00013738,2]
[338260191,1726453839195,-159.20690319,0.00013738,2]
[338260192,1726453839206,-150.0,0.00013738,2]
[338260193,1726453839215,-455.33991782,0.00013753,2]
[338260194,1726453839224,-159.20690319,0.00013753,2]
[338260195,1726453839233,-455.33991782,0.00013768,2]
[338260196,1726453839243,-159.20690319,0.00013768,2]
[338260197,1726453839252,-455.33991782,0.00013783,2]
[338260198,1726453839262,-159.20690319,0.00013783,2]
[338260199,1726453839274,-150.0,0.00013783,2]
[338260200,1726453839284,-455.33991782,0.00013798,2]
[338260201,1726453839294,-159.20690319,0.00013798,2]
[338260202,1726453839304,-3764.43826,0.000138,3]
[338260203,1726453839313,-455.33991782,0.00013812,2]
[338260204,1726453839322,-159.20690319,0.00013812,2]
[338260205,1726453839332,-455.33991782,0.00013827,2]
[338260206,1726453839341,-159.20690319,0.00013827,2]
[338260207,1726453839351,-150.0,0.00013827,2]
[338260208,1726453839360,-805.5,0.00013836,2]
[338260209,1726453839370,-429.88,0.00013836,2]
[338260210,1726453839379,-455.33991782,0.00013842,2]
[338260211,1726453839389,-159.20690319,0.00013842,2]
[338260212,1726453839399,-455.33991782,0.00013857,2]
[338260213,1726453839408,-159.20690319,0.00013857,2]
[338260214,1726453839418,-455.33991782,0.00013872,2]
[338260215,1726453839427,-159.20690319,0.00013872,2]
[338260216,1726453839437,-150.0,0.00013872,2]
[338260217,1726453839446,-150.0,0.00013881,2]
[338260218,1726453839456,-455.33991782,0.00013887,2]
[338260219,1726453839465,-159.20690319,0.00013887,2]
[338260220,1726453839475,-160.368154,0.00013897,2]
[338260221,1726453839484,-6848.32362448,0.000139,3]
[338260222,1726453839494,-357.22477361,0.000139,2]
[338260223,1726453839504,-455.33991782,0.00013902,2]
[338260224,1726453839513,-159.20690319,0.00013902,2]
[338260225,1726453839523,-455.33991782,0.00013917,2]
[338260226,1726453839533,-159.20690319,0.00013917,2]
[338260227,1726453839543,-150.0,0.00013917,2]
[338260228,1726453839552,-455.33991782,0.00013932,2]
[338260229,1726453839562,-159.20690319,0.00013932,2]
[338260230,1726453839571,-455.33991782,0.00013947,2]
[338260231,1726453839581,-159.20690319,0.00013947,2]
[338260232,1726453839590,-1496.63504,0.0001396,2]
[338260233,1726453839600,-455.33991782,0.00013962,2]
[338260234,1726453839609,-159.20690319,0.00013962,2]
[338260235,1726453839618,-150.0,0.00013962,2]
[338260236,1726453839628,-352.55778,0.00013973,2]
[338260237,1726453839639,-550.05,0.00013973,2]
[338260238,1726453839650,-302.44,0.00013973,2]
[338260239,1726453839660,-302.31,0.00013973,2]
[338260240,1726453839669,-303.45,0.00013973,2]
[338260241,1726453839679,-162.28,0.00013973,2]
[338260242,1726453839689,-724.31,0.00013973,2]
[338260243,1726453839699,-301.26,0.00013973,2]
[338260244,1726453839709,-301.55,0.00013973,2]
[338260245,1726453839720,-304.24,0.00013973,2]
[338260246,1726453839730,-455.33991782,0.00013977,2]
[338260247,1726453839740,-159.20690319,0.00013977,2]
[338260248,1726453839750,-455.33991782,0.00013991,2]
[338260249,1726453839759,-159.20690319,0.00013991,2]
[338260250,1726453839769,-602.120644,0.00013993,2]
[338260251,1726453839778,-455.33991782,0.00014006,2]
[338260252,1726453839788,-159.20690319,0.00014006,2]
[338260253,1726453839797,-150.0,0.00014006,2]
[338260254,1726453839807,-455.33991782,0.00014021,2]
[338260255,1726453839817,-159.20690319,0.00014021,2]
[338260256,1726453839828,-150.0,0.00014027,2]
[338260258,1726453839838,-455.33991782,0.00014036,2]
[338260259,1726453839848,-159.20690319,0.00014036,2]
[338260260,1726453839858,-455.33991782,0.00014051,2]
[338260261,1726453839868,-159.20690319,0.00014051,2]
[338260262,1726453839878,-150.0,0.00014051,2]
[338260263,1726453839887,-455.33991782,0.00014066,2]
[338260264,1726453839897,-159.20690319,0.00014066,2]
[338260265,1726453839906,-455.33991782,0.00014081,2]
[338260266,1726453839916,-159.20690319,0.00014081,2]
[338260267,1726453839925,-48.41844642,0.00014096,2]
[338260268,1726453839951,-406.9214714,0.00014096,2]
[338260269,1726453839960,-159.20690319,0.00014096,2]
[338260270,1726453839970,-150.0,0.00014096,2]
[338260271,1726453839980,-150.0,0.00014102,2]
[338260272,1726453839991,-255.0,0.00014104,2]
[338260273,1726453840001,-455.33991782,0.00014111,2]
[338260274,1726453840011,-159.20690319,0.00014111,2]
[338260275,1726453840020,-150.0,0.00014115,2]
[338260276,1726453840030,-455.33991782,0.00014126,2]
[338260277,1726453840039,-159.20690319,0.00014126,2]
[338260278,1726453840048,-150.2,0.00014127,2]
[338260279,1726453840059,-518.428,0.00014135,2]
[338260280,1726453840069,-923.086,0.00014135,2]
[338260281,1726453840079,-150.0,0.00014135,2]
[338260282,1726453840090,-448.0,0.00014135,2]
[338260283,1726453840100,-558.0,0.00014135,2]
[338260284,1726453840111,-150.0,0.00014139,2]
[338260285,1726453840121,-158.127,0.00014139,2]
[338260286,1726453840131,-455.33991782,0.00014141,2]
[338260287,1726453840140,-159.20690319,0.00014141,2]
[338260289,1726453840150,-150.0,0.00014141,2]
[338260290,1726453840159,-455.33991782,0.00014156,2]
[338260292,1726453840168,-159.20690319,0.00014156,2]
[338260293,1726453840177,-602.120644,0.00014167,2]
[338260295,1726453840187,-455.33991782,0.0001417,2]
[338260296,1726453840197,-159.20690319,0.0001417,2]
[338260297,1726453840206,-150.0,0.00014176,2]
[338260298,1726453840215,-455.33991782,0.00014185,2]
[338260299,1726453840224,-159.20690319,0.00014185,2]
[338260300,1726453840233,-150.0,0.00014185,2]
[338260301,1726453840243,-455.33991782,0.000142,2]
[338260302,1726453840254,-159.20690319,0.000142,2]
[338260303,1726453840264,-455.33991782,0.00014215,2]
[338260305,1726453840276,-159.20690319,0.00014215,2]
[338260306,1726453840286,-455.33991782,0.0001423,2]
[338260308,1726453840296,-159.20690319,0.0001423,2]
[338260310,1726453840305,-150.0,0.0001423,2]
[338260312,1726453840315,-150.0,0.00014234,2]
[338260314,1726453840325,-455.33991782,0.00014245,2]
[338260315,1726453840336,-159.20690319,0.00014245,2]
[338260316,1726453840347,-455.33991782,0.0001426,2]
[338260317,1726453840355,-159.20690319,0.0001426,2]
[338260318,1726453840364,-455.33991782,0.00014275,2]
[338260319,1726453840375,-159.20690319,0.00014275,2]
[338260320,1726453840385,-150.0,0.00014275,2]
[338260321,1726453840395,-1496.63504,0.0001428,2]
[338260322,1726453840406,-151.26,0.00014288,2]
[338260323,1726453840418,-455.33991782,0.0001429,2]
[338260324,1726453840429,-159.20690319,0.0001429,2]
[338260325,1726453840439,-550.0,0.00014302,2]
[338260326,1726453840448,-455.33991782,0.00014305,2]
[338260327,1726453840458,-159.20690319,0.00014305,2]
[338260328,1726453840467,-455.33991782,0.0001432,2]
[338260329,1726453840476,-159.20690319,0.0001432,2]
[338260330,1726453840486,-150.0,0.0001432,2]
[338260331,1726453840499,-455.33991782,0.00014335,2]
[338260332,1726453840508,-159.20690319,0.00014335,2]
[338260333,1726453840518,-150.0,0.00014336,2]